bitfinex-derivatives/quotes_BTCF0:USTF0_20250722
["timestamp","ask_amount","ask_price","bid_price","bid_amount"]
[1753167146365,0.36453203,117750.0,117740.0,1.69211064]
[1753167146669,0.46914203,117750.0,117740.0,1.69211064]
[1753167147162,0.274391,117750.0,117740.0,1.69211064]
[1753167147366,0.46914203,117750.0,117740.0,1.40571484]
[1753167149566,0.46914203,117750.0,117740.0,1.42097496]
[1753167149971,0.36453203,117750.0,117740.0,1.42097496]
[1753167150166,0.36453203,117750.0,117740.0,1.70737076]
[1753167150365,0.42571203,117750.0,117740.0,1.70737076]
[1753167150570,0.75553783,117750.0,117740.0,1.42097496]
[1753167151066,0.46914203,117750.0,117740.0,1.42097496]
[1753167151267,0.46914203,117750.0,117740.0,1.06017496]
[1753167151268,1.11633783,117750.0,117740.0,1.06017496]
[1753167152365,0.82994203,117750.0,117740.0,1.06017496]
[1753167153068,0.46914203,117750.0,117740.0,1.06017496]
[1753167153463,0.36453203,117750.0,117740.0,1.33149942]
[1753167153667,0.34883203,117750.0,117740.0,1.69229942]
[1753167154569,0.33423203,117750.0,117740.0,1.69229942]
[1753167156370,0.33423203,117750.0,117740.0,1.63136699]
[1753167156665,0.39541203,117750.0,117740.0,1.63136699]
[1753167157271,0.33423203,117750.0,117740.0,1.63136699]
[1753167158767,0.39541203,117750.0,117740.0,1.63136699]
[1753167158974,0.43884203,117750.0,117740.0,1.63136699]
[1753167159668,0.43884203,117750.0,117740.0,1.33149955]
[1753167160263,0.43884203,117750.0,117740.0,1.27056699]
[1753167161874,0.43884203,117750.0,117740.0,1.37697227]
[1753167162579,0.43884203,117750.0,117740.0,1.73777227]
[1753167163377,0.43884203,117750.0,117740.0,1.45137647]
[1753167163871,0.43884203,117750.0,117740.0,1.47137647]
[1753167164276,0.43884203,117750.0,117740.0,1.75777227]
[1753167166375,0.43884203,117750.0,117740.0,1.73777227]
[1753167166581,0.43884203,117750.0,117740.0,2.05777227]
[1753167166975,0.43884203,117750.0,117740.0,1.77137647]
[1753167167279,0.43884203,117750.0,117740.0,1.69697227]
[1753167167683,0.43884203,117750.0,117740.0,2.05777227]
[1753167169483,0.43884203,117750.0,117740.0,1.95136699]
[1753167170685,0.36453203,117750.0,117740.0,1.95136699]
[1753167170879,0.36453203,117750.0,117740.0,2.02753946]
[1753167171585,0.36453203,117750.0,117740.0,1.95136699]
[1753167171785,0.19475103,117750.0,117740.0,2.02753265]
[1753167172886,0.36453203,117750.0,117740.0,2.02753265]
[1753167173581,0.36453203,117750.0,117740.0,2.04997525]
[1753167174183,0.36453203,117750.0,117740.0,2.03748579]
[1753167174681,0.19475103,117750.0,117740.0,2.03748579]
[1753167174886,0.19475103,117750.0,117740.0,1.96132013]
[1753167175881,0.36453203,117750.0,117740.0,1.96132013]
[1753167176385,0.36453203,117750.0,117740.0,1.67492433]
[1753167176581,0.271291,117750.0,117740.0,1.31412433]
[1753167176783,0.75243783,117750.0,117740.0,1.31412433]
[1753167176990,1.11323783,117750.0,117740.0,0.82432893]
[1753167177286,1.11323783,117750.0,117740.0,1.10052961]
[1753167177680,0.82684203,117750.0,117740.0,1.10052961]
[1753167177880,1.11323783,117750.0,117740.0,1.10052961]
[1753167178278,1.11323783,117750.0,117740.0,1.09057647]
[1753167178985,1.11323783,117750.0,117740.0,1.10295599]
[1753167179185,1.11323783,117750.0,117740.0,0.99655071]
[1753167180292,0.46604203,117750.0,117740.0,0.99655071]
[1753167182291,0.46604203,117750.0,117740.0,1.05748763]
[1753167182793,0.40353203,117750.0,117740.0,1.34388343]
[1753167183185,1.11323783,117750.0,117740.0,0.03205952]
[1753167183495,0.3688797,117730.0,117720.0,0.75057299]
[1753167183695,1.21082653,117730.0,117720.0,1.25039719]
[1753167183893,1.21082653,117730.0,117720.0,1.08057299]
[1753167184095,1.21082653,117730.0,117720.0,1.32655839]
[1753167184288,1.21082653,117730.0,117720.0,0.73563839]
[1753167184492,1.21082653,117730.0,117720.0,1.15685419]
[1753167184689,1.21082653,117730.0,117720.0,1.15785419]
[1753167184889,1.21082653,117730.0,117720.0,1.08169299]
[1753167185091,1.21082653,117730.0,117720.0,0.49065299]
[1753167185292,1.21082653,117730.0,117720.0,1.10037299]
[1753167185497,1.21082653,117730.0,117720.0,1.14643299]
[1753167185698,1.21082653,117730.0,117720.0,0.83407299]
[1753167185888,1.21082653,117730.0,117720.0,0.83707299]
[1753167186290,1.21082653,117730.0,117720.0,0.91323419]
[1753167186596,1.21082653,117730.0,117720.0,0.86069419]
[1753167187097,1.57162653,117730.0,117720.0,0.73069419]
[1753167187396,1.57162653,117730.0,117720.0,0.68463419]
[1753167187785,1.57262653,117730.0,117720.0,0.68463419]
[1753167187994,1.64223835,117730.0,117720.0,0.68463419]
[1753167188393,2.23327835,117730.0,117720.0,0.09363419]
[1753167188792,2.23327835,117730.0,117720.0,0.13969419]
[1753167189596,2.23327835,117730.0,117720.0,0.15841419]
[1753167192902,2.23327835,117730.0,117720.0,0.14308223]
[1753167193100,2.23327835,117730.0,117720.0,0.12436223]
[1753167195101,2.23327835,117730.0,117720.0,0.14199223]
[1753167196796,2.23327835,117730.0,117720.0,0.08116299]
[1753167196992,2.23327835,117730.0,117720.0,0.06353299]
[1753167197598,2.23327835,117730.0,117720.0,0.01747299]
[1753167198700,2.23327835,117730.0,117720.0,0.06361299]
[1753167199102,2.23327835,117730.0,117720.0,0.01747299]
[1753167199296,2.23327835,117730.0,117720.0,0.0630941]
[1753167199806,2.23327835,117730.0,117720.0,0.01747299]
[1753167200202,2.23327835,117730.0,117720.0,0.06309123]
[1753167200505,2.23327835,117730.0,117720.0,0.06361299]
[1753167201310,1.64223835,117730.0,117720.0,0.06361299]
[1753167201603,0.86189835,117730.0,117720.0,0.39425789]
[1753167201805,0.86189835,117730.0,117720.0,0.45508713]
[1753167202107,0.84629835,117730.0,117720.0,0.45508713]
[1753167202302,1.25021835,117730.0,117720.0,0.28526223]
[1753167202504,1.26495835,117730.0,117720.0,0.28526223]
[1753167202704,1.26495835,117730.0,117720.0,0.39425789]
[1753167202902,1.26495835,117730.0,117720.0,0.22443299]
[1753167203409,1.26395835,117730.0,117720.0,0.22443299]
[1753167203599,1.26395835,117730.0,117720.0,0.27005724]
[1753167204004,1.26395835,117730.0,117720.0,0.22443299]
[1753167205103,1.26395835,117730.0,117720.0,0.39425789]
[1753167205502,1.26395835,117730.0,117720.0,0.22443299]
[1753167206509,1.26395835,117730.0,117720.0,0.28526223]
[1753167207008,1.26395835,117730.0,117720.0,0.24378223]
[1753167208206,1.26395835,117730.0,117720.0,0.28526223]
[1753167210108,1.26395835,117730.0,117720.0,0.18055223]
[1753167210410,1.24921835,117730.0,117720.0,0.45508723]
[1753167210612,1.24921835,117730.0,117720.0,1.04440723]
[1753167211614,1.26395835,117730.0,117720.0,1.04440723]
[1753167212316,1.26395835,117730.0,117720.0,0.98357799]
[1753167213308,1.26395835,117730.0,117720.0,0.01747299]
[1753167213508,1.55035415,117730.0,117720.0,0.07845558]
[1753167213715,1.55035415,117730.0,117720.0,0.01747299]
[1753167214215,1.55035415,117730.0,117720.0,0.06321794]
[1753167215608,1.55035415,117730.0,117720.0,0.04574495]
[1753167215814,1.55035415,117730.0,117720.0,0.03100495]
[1753167216015,0.303585,117720.0,117710.0,0.06098259]
[1753167216215,2.02088763,117720.0,117710.0,0.06098259]
[1753167217318,0.3009694,117710.0,117700.0,0.92946716]
[1753167217518,1.14291623,117710.0,117700.0,0.93900716]
[1753167217722,1.14291623,117710.0,117700.0,0.35000716]
[1753167217920,1.14291623,117710.0,117700.0,0.18015336]
[1753167218618,1.14291623,117710.0,117700.0,0.35000716]
[1753167218818,1.14291623,117710.0,117700.0,0.16323259]
[1753167219418,1.15136469,117710.0,117700.0,0.16323259]
[1753167219618,1.14291623,117710.0,117700.0,0.12475259]
[1753167220216,1.14391623,117710.0,117700.0,0.12475259]
[1753167225621,1.14391623,117710.0,117700.0,0.10712259]
[1753167225827,1.14391623,117710.0,117700.0,0.10717259]
[1753167226031,1.14391623,117710.0,117700.0,0.04619]
[1753167227028,1.14391623,117710.0,117700.0,0.06355]
[1753167229329,1.14391623,117710.0,117700.0,0.04619]
[1753167229831,0.2978338,117700.0,117690.0,0.08256646]
[1753167230128,1.13978063,117700.0,117690.0,0.08256646]
[1753167230319,1.13978063,117700.0,117690.0,0.06520646]
[1753167230918,1.13978063,117700.0,117690.0,0.08256646]
[1753167232027,1.72854063,117700.0,117690.0,0.08256646]
[1753167233129,1.5337896,117700.0,117690.0,0.14354905]
[1753167233335,1.72854063,117700.0,117690.0,0.12618905]
[1753167233530,1.72854063,117700.0,117690.0,0.10717259]
[1753167234028,1.72854063,117700.0,117690.0,0.04619]
[1753167234224,0.84212483,117700.0,117690.0,0.3737982]
[1753167234425,1.12852063,117700.0,117690.0,0.3737982]
[1753167235732,0.67227103,117700.0,117690.0,0.3737982]
[1753167235928,0.51964589,117720.0,117710.0,0.1871994]
[1753167236126,1.15316743,117720.0,117710.0,0.3737694]
[1753167236333,1.17042187,117720.0,117710.0,1.00809205]
[1753167236638,1.23067187,117720.0,117710.0,1.00809205]
[1753167237025,1.23067187,117720.0,117710.0,0.79257]
[1753167237232,1.24193187,117720.0,117710.0,0.79257]
[1753167237430,1.24193187,117720.0,117710.0,0.9624094]
[1753167237634,1.24193187,117720.0,117710.0,0.79257]
[1753167237832,1.24193187,117720.0,117710.0,0.85355259]
[1753167238034,1.24193187,117720.0,117710.0,0.85555259]
[1753167238437,1.24193187,117720.0,117710.0,0.79351259]
[1753167238632,1.24193187,117720.0,117710.0,0.79151259]
[1753167238827,1.24193187,117720.0,117710.0,0.20287259]
[1753167239235,1.24193187,117720.0,117710.0,0.37271199]
[1753167239435,1.24193187,117720.0,117710.0,0.43475199]
[1753167239734,1.24193187,117720.0,117710.0,0.26491259]
[1753167239935,1.24193187,117720.0,117710.0,0.43475199]
[1753167240335,1.23067187,117720.0,117710.0,0.43475199]
[1753167240539,1.23067187,117720.0,117710.0,0.44342909]
[1753167241138,1.03592084,117720.0,117710.0,0.44342909]
[1753167242038,1.23067187,117720.0,117710.0,0.44342909]
[1753167242544,1.03592084,117720.0,117710.0,0.44342909]
[1753167242738,0.67512084,117720.0,117710.0,0.44342909]
[1753167243643,0.65711084,117720.0,117710.0,0.44342909]
[1753167244043,0.67512084,117720.0,117710.0,0.44342909]
[1753167244242,0.38872504,117720.0,117710.0,0.44342909]
[1753167244643,0.67512084,117720.0,117710.0,0.44342909]
[1753167245639,0.6578664,117720.0,117710.0,0.44342909]
[1753167247345,1.0186664,117720.0,117710.0,0.44342909]
[1753167249637,1.03556788,117720.0,117710.0,0.26491259]
[1753167249842,1.04682788,117720.0,117710.0,0.26491259]
[1753167250146,0.76043208,117720.0,117710.0,0.26491259]
[1753167250347,1.04682788,117720.0,117710.0,0.26491259]
[1753167250949,1.04682788,117720.0,117710.0,0.43475189]
[1753167251348,1.04682788,117720.0,117710.0,0.26491259]
[1753167251747,1.04682788,117720.0,117710.0,0.43475189]
[1753167252048,1.24157891,117720.0,117710.0,0.26491259]
[1753167255453,1.24157891,117720.0,117710.0,0.43475189]
[1753167255654,1.23031891,117720.0,117710.0,0.43475189]
[1753167255853,0.95065308,117720.0,117710.0,0.43475189]
[1753167256051,0.71676,117730.0,117720.0,0.2477449]
[1753167256252,0.6743051,117730.0,117720.0,1.2995798]
[1753167256555,0.3135051,117730.0,117720.0,1.2995798]
[1753167256756,0.3135051,117730.0,117720.0,1.013184]
[1753167256956,0.5999009,117730.0,117720.0,1.013184]
[1753167258557,0.3135051,117730.0,117720.0,1.013184]
[1753167259152,0.3289051,117730.0,117720.0,1.015184]
[1753167259555,0.5996009,117730.0,117720.0,1.015184]
[1753167261055,0.4030258,117730.0,117720.0,1.015184]
[1753167261457,0.4030258,117730.0,117720.0,0.788344]
[1753167261458,0.10123,117730.0,117720.0,0.788344]
[1753167261652,0.7638258,117740.0,117730.0,0.3646405]
[1753167261965,0.59777683,117740.0,117730.0,0.78628562]
[1753167262457,0.10123,117740.0,117730.0,0.78628562]
[1753167262654,0.13569572,117750.0,117740.0,0.3646261]
[1753167262852,0.13569572,117750.0,117740.0,1.66400129]
[1753167262853,0.10123,117750.0,117740.0,1.66400129]
[1753167263249,0.10123,117750.0,117740.0,1.37756872]
[1753167263851,0.10123,117750.0,117740.0,1.37748872]
[1753167264248,0.10123,117750.0,117740.0,1.37748811]
[1753167264453,0.2863958,117760.0,117750.0,0.1697816]
[1753167264653,0.29598103,117760.0,117750.0,0.6510074]
[1753167265155,0.29598103,117760.0,117750.0,0.71178941]
[1753167265556,0.29598103,117760.0,117750.0,1.0118074]
[1753167265865,0.10123,117760.0,117750.0,0.7254116]
[1753167266067,0.29798103,117760.0,117750.0,0.7254116]
[1753167266564,0.29798103,117760.0,117750.0,0.7264116]
[1753167266759,0.29798103,117760.0,117750.0,1.0128074]
[1753167266760,0.002,117760.0,117750.0,1.0128074]
[1753167267465,0.002,117760.0,117750.0,0.7264116]
[1753167267668,0.657657,117770.0,117760.0,0.1786472]
[1753167267862,0.80996923,117770.0,117760.0,0.98409152]
[1753167268059,0.76753073,117770.0,117760.0,1.00162152]
[1753167268363,0.76753073,117770.0,117760.0,1.01001868]
[1753167269462,0.76753073,117770.0,117760.0,1.01201868]
[1753167270763,0.48113493,117770.0,117760.0,1.0307726]
[1753167271068,0.76753073,117770.0,117760.0,1.0307726]
[1753167271269,0.76753073,117770.0,117760.0,1.3915726]
[1753167271270,0.48113383,117770.0,117760.0,1.3915726]
[1753167271472,0.31138103,117770.0,117760.0,1.3915726]
[1753167272769,0.31138103,117770.0,117760.0,1.6779684]
[1753167272770,0.10123,117770.0,117760.0,1.6779684]
[1753167273270,0.06003,117770.0,117760.0,1.34602828]
[1753167273483,0.42702,117790.0,117780.0,0.3470384]
[1753167273767,0.7134158,117790.0,117780.0,0.9552484]
[1753167273967,0.11663,117790.0,117780.0,1.00072016]
[1753167274173,0.29598103,117790.0,117780.0,1.3160484]
[1753167274476,0.29598103,117790.0,117780.0,0.9552484]
[1753167274664,0.29598103,117790.0,117780.0,0.3645684]
[1753167274865,0.29698103,117790.0,117780.0,0.9551284]
[1753167275072,0.76850083,117790.0,117780.0,0.9551284]
[1753167275972,0.76850083,117790.0,117780.0,1.02340875]
[1753167277171,0.76850083,117790.0,117780.0,1.06888051]
[1753167277372,0.59877683,117790.0,117780.0,1.06888051]
[1753167277772,0.76850083,117790.0,117780.0,1.06888051]
[1753167278472,0.001,117790.0,117780.0,1.69416934]
[1753167278775,0.001,117790.0,117780.0,1.44857354]
[1753167279069,0.10223,117790.0,117780.0,1.44857354]
[1753167279275,0.10223,117790.0,117780.0,1.08777354]
[1753167279678,0.10223,117790.0,117780.0,1.44857354]
[1753167279872,0.10123,117790.0,117780.0,1.44857354]
[1753167280371,0.42014807,117800.0,117790.0,0.364554]
[1753167280559,0.42014807,117800.0,117790.0,0.725354]
[1753167280759,0.59777683,117800.0,117790.0,0.725354]
[1753167281080,0.29598103,117800.0,117790.0,0.725354]
[1753167281766,0.06003,117800.0,117790.0,1.0117498]
[1753167282168,1.07407433,117800.0,117790.0,0.0992]
[1753167282369,1.07407433,117800.0,117790.0,0.953954]
[1753167282370,0.62262956,117800.0,117790.0,0.953954]
[1753167282566,0.78390906,117800.0,117790.0,0.953954]
[1753167282969,0.49751326,117800.0,117790.0,0.953954]
[1753167283172,1.14470906,117800.0,117790.0,0.953954]
[1753167283374,0.85831326,117800.0,117790.0,0.953954]
[1753167283570,1.14470906,117800.0,117790.0,0.953954]
[1753167284274,1.14470906,117800.0,117790.0,0.954154]
[1753167284674,0.61419956,117800.0,117790.0,0.954154]
[1753167284979,0.61419956,117800.0,117790.0,1.314954]
[1753167285177,0.32780376,117800.0,117790.0,1.314954]
[1753167285382,0.61419956,117800.0,117790.0,1.314954]
[1753167286386,0.55950956,117800.0,117790.0,1.314954]
[1753167286978,0.59922956,117800.0,117790.0,1.314954]
[1753167288277,0.59922956,117800.0,117790.0,0.9540391]
[1753167288477,0.78208906,117800.0,117790.0,0.3644391]
[1753167288679,0.78208906,117800.0,117790.0,0.9660504]
[1753167288881,0.32598376,117800.0,117790.0,0.9660504]
[1753167289080,0.61237956,117800.0,117790.0,0.9660504]
[1753167289680,0.61237956,117800.0,117790.0,0.3768904]
[1753167289880,0.61237956,117800.0,117790.0,0.9662504]
[1753167290185,0.61237956,117800.0,117790.0,0.9537991]
[1753167290879,0.61237956,117800.0,117790.0,0.3644391]
[1753167291083,0.61237956,117800.0,117790.0,0.37681102]
[1753167291287,0.61237956,117800.0,117790.0,1.01136278]
[1753167291884,0.32598376,117800.0,117790.0,1.01136278]
[1753167292184,0.61237956,117800.0,117790.0,1.01136278]
[1753167292587,0.32598376,117800.0,117790.0,1.01136278]
[1753167292892,0.61137956,117800.0,117790.0,1.01136278]
[1753167293485,0.61137956,117800.0,117790.0,1.01137084]
[1753167294284,0.59822956,117800.0,117790.0,1.37217084]
[1753167294486,0.31183376,117800.0,117790.0,1.37217084]
[1753167294779,0.05521,117810.0,117800.0,0.1697085]
[1753167294984,0.24996103,117810.0,117800.0,1.6345142]
[1753167295180,0.2863958,117820.0,117800.0,1.6345142]
[1753167295181,0.3392658,117820.0,117810.0,0.2447841]
[1753167295386,0.30283103,117820.0,117810.0,0.7224141]
[1753167295686,0.30283103,117820.0,117810.0,0.77642428]
[1753167296584,0.30283103,117820.0,117810.0,0.73090438]
[1753167297086,0.30483103,117820.0,117810.0,0.37010438]
[1753167297286,0.47451073,117820.0,117810.0,0.37010438]
[1753167297486,0.30483103,117820.0,117810.0,0.37010438]
[1753167297787,0.59122683,117820.0,117810.0,0.37010438]
[1753167297985,0.59122683,117820.0,117810.0,0.73090438]
[1753167298188,0.76090653,117820.0,117810.0,0.37010438]
[1753167298486,0.76090653,117820.0,117810.0,0.3616141]
[1753167298881,0.76090653,117820.0,117810.0,0.40712]
[1753167299186,0.76090653,117820.0,117810.0,0.99548]
[1753167299381,0.65282653,117820.0,117810.0,0.99548]
[1753167299587,0.29168103,117820.0,117810.0,1.65496983]
[1753167299783,0.76090653,117820.0,117810.0,0.83807993]
[1753167299982,1.14489115,117820.0,117810.0,0.6784759]
[1753167300183,1.14489115,117820.0,117810.0,0.6784359]
[1753167300884,1.14489115,117820.0,117810.0,0.6967759]
[1753167301083,1.14489115,117820.0,117810.0,0.6972559]
[1753167301490,1.14489115,117820.0,117810.0,0.86695]
[1753167302186,1.14489115,117820.0,117810.0,0.7095977]
[1753167302483,1.14489115,117820.0,117810.0,0.1208377]
[1753167302683,1.14489115,117820.0,117810.0,0.0475059]
[1753167302985,0.2225785,117800.0,117790.0,0.33391291]
[1753167303185,1.12795533,117800.0,117790.0,0.33391291]
[1753167303490,1.12795533,117800.0,117790.0,0.88004421]
[1753167303676,1.12795533,117800.0,117790.0,0.8192622]
[1753167304192,1.12795533,117800.0,117790.0,0.8232622]
[1753167304383,1.12795533,117800.0,117790.0,0.2347022]
[1753167304785,1.12795533,117800.0,117790.0,0.8232222]
[1753167304980,1.12795533,117800.0,117790.0,0.2347022]
[1753167305184,1.12795533,117800.0,117790.0,0.8232222]
[1753167305385,1.12795533,117800.0,117790.0,0.8252222]
[1753167305690,1.12895533,117800.0,117790.0,0.65151]
[1753167305886,1.12895533,117800.0,117790.0,0.8212329]
[1753167306293,1.12895533,117800.0,117790.0,0.2327129]
[1753167306588,1.12895533,117800.0,117790.0,0.8211529]
[1753167306790,1.12895533,117800.0,117790.0,0.8210329]
[1753167307293,1.12895533,117800.0,117790.0,0.8190329]
[1753167307689,1.12895533,117800.0,117790.0,0.64931]
[1753167307886,1.12895533,117800.0,117790.0,0.06099]
[1753167308091,1.14604448,117800.0,117790.0,0.63089]
[1753167308287,1.79324028,117800.0,117790.0,0.58824]
[1753167308491,1.79324028,117800.0,117780.0,0.07988303]
[1753167308492,0.2860229,117790.0,117780.0,0.07988303]
[1753167308693,0.2860229,117790.0,117780.0,0.66812303]
[1753167308694,1.12796973,117790.0,117780.0,0.66812303]
[1753167309893,1.12796973,117790.0,117780.0,0.66912303]
[1753167310597,1.12796973,117790.0,117780.0,0.66920303]
[1753167310893,1.12796973,117790.0,117780.0,0.66932303]
[1753167312099,1.12996973,117790.0,117780.0,0.66832303]
[1753167312399,1.12996973,117790.0,117780.0,0.07988303]
[1753167312593,1.12996973,117790.0,117780.0,0.66828303]
[1753167313492,0.2860517,117770.0,117760.0,0.32219407]
[1753167313699,1.14520532,117770.0,117760.0,0.76875322]
[1753167313894,1.14520532,117770.0,117760.0,0.97705942]
[1753167314085,1.14520532,117770.0,117760.0,1.04089942]
[1753167314286,0.85058952,117770.0,117760.0,0.9801188]
[1753167314589,1.13698532,117770.0,117760.0,0.9801188]
[1753167315493,0.76303542,117770.0,117760.0,0.9801188]
[1753167315695,0.76303542,117770.0,117760.0,1.3409188]
[1753167315890,0.70782542,117770.0,117760.0,1.3409188]
[1753167316393,0.70782542,117770.0,117760.0,1.3419188]
[1753167316790,0.76393542,117770.0,117760.0,1.3419188]
[1753167317394,0.77589542,117770.0,117760.0,1.40860788]
[1753167317698,1.13669542,117770.0,117760.0,1.05156788]
[1753167318894,1.13669542,117770.0,117760.0,0.28964168]
[1753167319199,1.13669542,117770.0,117760.0,0.2229526]
[1753167319395,1.43057122,117770.0,117760.0,0.06484]
[1753167319703,0.3347261,117760.0,117750.0,0.6225]
[1753167319897,1.46306873,117760.0,117750.0,0.6225]
[1753167320496,1.17667293,117760.0,117750.0,0.7922806]
[1753167320697,0.89027713,117760.0,117750.0,0.9209106]
[1753167320897,1.17667293,117760.0,117750.0,0.3256706]
[1753167321197,1.17667293,117760.0,117750.0,0.9247906]
[1753167321695,1.17667293,117760.0,117750.0,0.9703806]
[1753167322901,0.2936061,117760.0,117750.0,1.01588811]
[1753167323792,1.00044219,117770.0,117760.0,0.265296]
[1753167324000,0.90879742,117770.0,117760.0,0.371246]
[1753167324196,1.19519322,117770.0,117760.0,0.371246]
[1753167324398,0.71404639,117770.0,117760.0,0.371246]
[1753167324595,1.00044219,117770.0,117760.0,0.371246]
[1753167325196,0.71404639,117770.0,117760.0,0.371246]
[1753167325905,0.35324639,117770.0,117760.0,0.371246]
[1753167326208,0.35324639,117770.0,117760.0,0.41675351]
[1753167328307,0.63964219,117770.0,117760.0,0.41675351]
[1753167328504,0.22940639,117770.0,117760.0,0.41675351]
[1753167328808,0.18695839,117770.0,117760.0,0.71314931]
[1753167329003,0.01720679,117770.0,117760.0,0.71314931]
[1753167329209,0.01720679,117770.0,117760.0,1.0284418]
[1753167329601,0.01720679,117770.0,117760.0,1.6248418]
[1753167329802,0.01720679,117770.0,117760.0,1.39922662]
[1753167330197,0.6715104,117790.0,117780.0,0.2098072]
[1753167330407,0.94675533,117790.0,117780.0,1.01305096]
[1753167331107,0.87235113,117790.0,117780.0,1.01305096]
[1753167331311,0.58595533,117790.0,117780.0,1.01305096]
[1753167331498,0.74942333,117790.0,117780.0,1.01305096]
[1753167331901,0.5546723,117790.0,117780.0,1.03197282]
[1753167332112,0.2682765,117790.0,117780.0,1.03197282]
[1753167332709,0.3063365,117790.0,117780.0,1.03197282]
[1753167332910,0.5927323,117790.0,117780.0,1.03197282]
[1753167333811,0.6224023,117790.0,117780.0,1.03197282]
[1753167334307,0.6224023,117790.0,117780.0,1.03200984]
[1753167334504,0.6224023,117790.0,117780.0,0.98645906]
[1753167335012,0.6635223,117790.0,117780.0,0.98645906]
[1753167335710,0.6224023,117790.0,117780.0,0.98645906]
[1753167337311,0.6224023,117790.0,117780.0,1.04723968]
[1753167337512,0.3360065,117790.0,117780.0,1.04723968]
[1753167337702,0.3204065,117790.0,117780.0,1.04723968]
[1753167338106,0.2907365,117790.0,117780.0,1.04723968]
[1753167338309,0.1965665,117790.0,117780.0,1.33363548]
[1753167339510,0.8292816,117800.0,117790.0,0.3529528]
[1753167339511,0.7139164,117800.0,117790.0,0.3529528]
[1753167339711,0.6578064,117800.0,117790.0,0.6575986]
[1753167339901,0.6578064,117800.0,117790.0,0.71837922]
[1753167340713,0.6578064,117800.0,117790.0,0.72696173]
[1753167340913,0.6578064,117800.0,117790.0,0.37978531]
[1753167341214,0.7139164,117800.0,117790.0,0.37978531]
[1753167341513,0.3531164,117800.0,117790.0,0.74058531]
[1753167341713,0.3106866,117800.0,117790.0,0.74058531]
[1753167341906,0.2545766,117800.0,117790.0,1.08776173]
[1753167342112,0.3487466,117800.0,117790.0,1.08776173]
[1753167342410,0.2545766,117800.0,117790.0,1.02698111]
[1753167342813,0.2545766,117800.0,117790.0,1.08776173]
[1753167343315,0.2545766,117800.0,117790.0,1.02698111]
[1753167343816,0.2121479,117800.0,117790.0,1.02698111]
[1753167344616,0.2711879,117800.0,117790.0,1.02698111]
[1753167345416,0.3088279,117800.0,117790.0,1.02698111]
[1753167347214,0.3088279,117800.0,117790.0,0.74058531]
[1753167347415,0.3088279,117800.0,117790.0,1.02698111]
[1753167348209,0.50357893,117800.0,117790.0,1.02698111]
[1753167348617,0.50357893,117800.0,117790.0,1.08776173]
[1753167350319,0.53358893,117800.0,117790.0,1.08776173]
[1753167351218,0.49116183,117800.0,117790.0,1.08776173]
[1753167351414,0.26240103,117800.0,117790.0,0.74058531]
[1753167351620,0.05904,117820.0,117810.0,0.362464]
[1753167351914,0.05904,117830.0,117820.0,0.3624496]
[1753167352117,0.29143103,117830.0,117820.0,0.6942766]
[1753167352314,0.29143103,117830.0,117820.0,0.4078808]
[1753167352511,0.46109623,117830.0,117820.0,0.3624496]
[1753167352716,0.46109623,117830.0,117820.0,0.43197866]
[1753167353016,0.49110623,117830.0,117820.0,0.43197866]
[1753167353217,0.49110623,117830.0,117820.0,0.49255359]
[1753167353718,0.77750203,117830.0,117820.0,0.49255359]
[1753167353917,1.17956203,117830.0,117820.0,0.4773882]
[1753167354118,1.17956203,117830.0,117820.0,0.7270586]
[1753167354520,1.17956203,117830.0,117820.0,0.7270186]
[1753167354919,1.17956203,117830.0,117820.0,0.9382382]
[1753167355121,1.17956203,117830.0,117820.0,0.9746382]
[1753167355318,1.17956203,117830.0,117820.0,1.0323082]
[1753167355719,0.89316623,117830.0,117820.0,1.0323082]
[1753167355915,1.17956203,117830.0,117820.0,0.4773882]
[1753167356121,1.17956203,117830.0,117820.0,1.0715082]
[1753167357323,1.17956203,117830.0,117820.0,0.9018286]
[1753167357524,1.18056203,117830.0,117820.0,0.7267786]
[1753167358323,1.18056203,117830.0,117820.0,0.1326586]
[1753167358517,1.18056203,117830.0,117820.0,0.1149386]
[1753167358722,1.18056203,117830.0,117820.0,0.7090586]
[1753167358923,1.18056203,117830.0,117820.0,0.04540954]
[1753167359122,1.18056203,117830.0,117820.0,0.63944954]
[1753167360625,0.89416623,117830.0,117820.0,0.63944954]
[1753167360820,1.18056203,117830.0,117820.0,0.63944954]
[1753167361027,1.18056203,117830.0,117820.0,0.80912914]
[1753167361230,1.18056203,117830.0,117820.0,0.65716954]
[1753167361630,1.18056203,117830.0,117820.0,0.63952954]
[1753167361826,1.18056203,117830.0,117820.0,0.63956954]
[1753167362827,1.18056203,117830.0,117820.0,0.65728954]
[1753167363530,1.18056203,117830.0,117820.0,0.69882954]
[1753167363928,1.18056203,117830.0,117820.0,0.86850914]
[1753167364128,1.18056203,117830.0,117820.0,0.87672914]
[1753167365023,1.18056203,117830.0,117820.0,0.70704954]
[1753167366235,1.18056203,117830.0,117820.0,0.69882954]
[1753167367729,1.18056203,117830.0,117820.0,1.00201914]
[1753167368236,1.18056203,117830.0,117820.0,0.83233954]
[1753167368835,0.6581552,117830.0,117820.0,1.00201914]
[1753167369037,0.85290623,117830.0,117820.0,1.00201914]
[1753167369838,1.13930203,117830.0,117820.0,1.00201914]
[1753167370033,1.13830203,117830.0,117820.0,1.00201914]
[1753167370433,1.17956203,117830.0,117820.0,1.00201914]
[1753167370639,1.17956203,117830.0,117820.0,0.9566096]
[1753167371238,1.17956203,117830.0,117820.0,0.3230096]
[1753167371438,1.17956203,117830.0,117820.0,0.74665]
[1753167372437,1.17956203,117830.0,117820.0,0.06326559]
[1753167372738,1.18056203,117830.0,117820.0,0.65658559]
[1753167373638,1.18056203,117830.0,117820.0,0.69812559]
[1753167373938,1.18056203,117830.0,117820.0,0.73488559]
[1753167376138,1.18056203,117830.0,117820.0,0.70670559]
[1753167377243,1.18056203,117830.0,117820.0,0.71898918]
[1753167377444,1.18056203,117830.0,117820.0,0.74738918]
[1753167377744,1.18056203,117830.0,117820.0,1.01238868]
[1753167377940,1.18056203,117830.0,117820.0,0.84270918]
[1753167378142,1.18056203,117830.0,117820.0,0.83042559]
[1753167378946,1.18056203,117830.0,117820.0,1.00010519]
[1753167380845,1.18056203,117830.0,117820.0,0.84545493]
[1753167381444,1.18056203,117830.0,117820.0,1.01513453]
[1753167381742,1.18056203,117830.0,117820.0,0.9545596]
[1753167383339,0.85290623,117830.0,117820.0,0.9545596]
[1753167383545,0.6281452,117830.0,117820.0,0.9545596]
[1753167383740,0.2673452,117830.0,117820.0,1.01513453]
[1753167384339,0.553741,117830.0,117820.0,1.01513453]
[1753167384947,0.552741,117830.0,117820.0,1.01513453]
[1753167385449,0.2663452,117830.0,117820.0,1.01513453]
[1753167385643,0.552741,117830.0,117820.0,1.01513453]
[1753167385844,0.913541,117830.0,117820.0,1.01513453]
[1753167386149,0.2663452,117830.0,117820.0,1.01513453]
[1753167386345,0.2073052,117830.0,117820.0,1.01513453]
[1753167386548,0.1696652,117830.0,117820.0,1.30153033]
[1753167387356,0.1696652,117830.0,117820.0,1.2409554]
[1753167388462,0.1696652,117830.0,117820.0,1.3181166]